Cogmind - Beta 16.1 @@@ ROGUE MODE // 2026.03.27 @ 17:02:58 Player: RHAHI Result: Core destroyed Performance ------------- Evolutions (5) 2500 Regions Visited (18) 3600 Robots Destroyed (266) 1330 Value Destroyed (9874) 9874 Prototype IDs (56) 1120 Alien Tech Used (0) 0 Bonus (5919) 5919 TOTAL SCORE: 24343 Bonus ------- High Alert Combat Kills 1124 Follower Combat Kills 2739 Entered Garrisons 600 Used RIF Installer 1500 Aligned with FarCom 300 Friendly Fire -344 Cogmind --------- Core Integrity 0/1000 Matter 222/300 Energy 141/187 System Corruption 0% Temperature Critical (593) Movement Treading (96) Location -5/Hub_04(d) Parts ------- > --- POWER (2) -------- Particle-Momentum Reactor > --- PROPULSION (5) --- Treaded Gravmag-Carbon Exoskeleton > --- UTILITY (6) ------ Armored Scrap Engine Huge Storage Unit Improved Medium Armor Plating Relay Coupler [NC] (11) > --- WEAPON (4) ------- Advanced Datajack Hvy. Energy Caster Construct/C Phasing Sabre > --- INVENTORY (25) --- Gravmag System Gravmag System Gravmag System Advanced Heat Sink Advanced Heat Sink Advanced Heat Sink Advanced Heat Sink Energy Well (350) Compact Matter Pod (150) Matter Compressor (250) Advanced Targeting Computer Target Analyzer Improved Weapon Cycler Graphene Brace Advanced Shield Generator Improved Hacking Suite Improved Hacking Suite Improved System Shield Improved System Shield Improved System Shield Relay Coupler [Specialist] (25) Long-range Tractor Beam Remote Datajack Peak State ------------ > --- POWER ------------ Particle-Momentum Reactor > --- PROPULSION ------- Treaded Gravmag-Carbon Exoskeleton > --- UTILITY ---------- Armored Scrap Engine Advanced Heat Sink Huge Storage Unit Authchip [R/NC] Relay Coupler [NC] > --- WEAPON ----------- Hvy. Energy Caster Construct/C Thermal Caster Construct/G Phasing Sabre > --- INVENTORY -------- Backup Power III Backup Power III Advanced Treads Advanced Heat Sink Advanced Heat Sink Energy Well Compact Matter Pod Matter Compressor Advanced Targeting Computer Target Analyzer Hardened Medium Armor Plating Improved Light Armor Plating Improved Medium Armor Plating Improved Medium Armor Plating Improved Medium Armor Plating Graphene Brace Advanced Shield Generator Relay Coupler [NC] Relay Coupler [Brawler] Relay Coupler [Duelist] Relay Coupler [Specialist] Long-range Tractor Beam Autogun Improved Grenade Launcher Remote Datajack [Rating: 98] Favorites ----------- Power Constructs Engine Heavy Ion Engine Power Core Micro Nuclear Core Reactor Constructs Propulsion Light Treads Treads Light Treads Leg Improved Aluminum Leg Wheel Compact Wheel Flight Unit Flight Unit Utility Huge Storage Unit Device Armored Scrap Engine Storage Huge Storage Unit Processor Advanced Targeting Computer Hackware Relay Coupler [NC] Protection Light Armor Plating Weapon Constructs Energy Gun Constructs Energy Cannon Constructs Ballistic Gun Heavy Assault Rifle Ballistic Cannon Advanced Assault Cannon Launcher Improved Grenade Launcher Special Weapon Remote Datajack Impact Weapon Power Maul Slashing Weapon Phasing Sabre Piercing Weapon Spear Special Melee Weapon Datajack Build | -11 -10 -9 -9 -9 -8 -8 -8 -8 -6 -6 -6 -6 -5 -5 -5 -5 -5 -5 ------- Run | Yrd Mat Mat Min Exi Min Mat Sto Rec Fac Gar Fac Gar Fac Gar Ext Cet Arc Hub Slots Evolved 10 | . . 2 . . . 2 . . 4 . . . 2 . . . . . Power 1 | . . . . . . . . . 1 . . . . . . . . . Propulsion 3 | . . . . . . 1 . . 1 . . . 1 . . . . . Utility 4 | . . 1 . . . 1 . . 2 . . . . . . . . . Weapon 2 | . . 1 . . . . . . . . . . 1 . . . . . Parts Attached 139 | 8 10 29 6 . 2 11 12 1 12 8 1 16 3 4 11 2 2 1 Power 13 | 1 3 3 1 . . . 1 . . 1 . 2 . . . 1 . . Engine 12 | 1 3 3 1 . . . 1 . . 1 . 1 . . . 1 . . Core 1 | . . . . . . . . . . . . 1 . . . . . . Reactor . | . . . . . . . . . . . . . . . . . . . Propulsion 24 | 3 2 8 3 . 2 2 3 . . . . . 1 . . . . . Treads 14 | 2 . 3 2 . 2 2 3 . . . . . . . . . . . Leg 3 | . . 3 . . . . . . . . . . . . . . . . Wheel 6 | 1 2 1 1 . . . . . . . . . 1 . . . . . Hover . | . . . . . . . . . . . . . . . . . . . Flight 1 | . . 1 . . . . . . . . . . . . . . . . Utility 61 | 2 1 7 2 . . 5 2 1 9 6 1 11 . 2 9 1 2 . Device 24 | 2 . 3 . . . . 1 1 4 3 . 4 . . 4 . 2 . Storage 6 | . 1 2 . . . . . . . 2 . 1 . . . . . . Processor 3 | . . 2 . . . . . . 1 . . . . . . . . . Hackware 14 | . . . . . . 2 . . 3 . 1 4 . 1 3 . . . Protection 14 | . . . 2 . . 3 1 . 1 1 . 2 . 1 2 1 . . Artifact . | . . . . . . . . . . . . . . . . . . . Weapon 41 | 2 4 11 . . . 4 6 . 3 1 . 3 2 2 2 . . 1 Energy Gun 4 | . . 3 . . . 1 . . . . . . . . . . . . Energy Cannon 3 | . . 2 . . . . . . . 1 . . . . . . . . Ballistic Gun 15 | 2 3 3 . . . 2 2 . . . . 1 . 2 . . . . Ballistic Cannon 4 | . . 1 . . . . 2 . . . . . 1 . . . . . Launcher 4 | . 1 . . . . . 1 . . . . 1 . . 1 . . . Special Weapon 4 | . . 1 . . . . 1 . 1 . . 1 . . . . . . Impact Weapon 2 | . . . . . . . . . 2 . . . . . . . . . Slashing Weapon 2 | . . . . . . 1 . . . . . . . . 1 . . . Piercing Weapon 1 | . . . . . . . . . . . . . 1 . . . . . Special Melee Weapon 2 | . . 1 . . . . . . . . . . . . . . . 1 Unidentified Prototypes 2 | . . . . . . . 1 1 . . . . . . . . . . Corrupted Parts 1 | . . . . . . . . . . . . 1 . . . . . . System Corruption 1 | . . . . . . . . . . . . 1 . . . . . . Parts Lost 51 | . 7 12 . . 1 . . . 3 5 . 3 3 3 6 5 2 1 Power 10 | . 3 2 . . . . . . 1 1 . . . . . 2 1 . Propulsion 8 | . 1 3 . . 1 . . . . 1 . . . . 2 . . . Utility 9 | . 1 1 . . . . . . 1 2 . 1 . . 1 1 . 1 Weapon 24 | . 2 6 . . . . . . 1 1 . 2 3 3 3 2 1 . Highest Loss Streak 5 | . 3 5 . . 1 . . . 2 4 . 1 2 3 3 4 2 1 To Critical Strikes 1 | . . . . . . . . . . 1 . . . . . . . . Average Backups 21 | 3 6 17 22 21 20 22 21 23 24 23 23 23 23 23 22 17 23 24 Power . | 1 . 1 2 2 2 2 1 . . . . . . . 1 . . . Propulsion 3 | 1 1 6 7 6 5 5 5 5 3 1 1 1 1 1 1 1 2 3 Utility 13 | . 1 5 8 8 8 8 8 12 17 17 18 18 19 19 18 14 18 19 Weapon 2 | . 2 2 4 4 4 4 4 3 1 2 2 2 1 1 1 . . . Tool/Special . | . . . . . . . . . . . . . . . . . . . Unused Backups 67 | . . 12 2 . . 1 8 2 14 2 . 1 1 3 1 . 3 17 Power 2 | . . 1 . . . . . 1 . . . . . . . . . . Propulsion 18 | . . 3 2 . . . 2 . 6 1 . . . . . . 1 3 Utility 36 | . . 2 . . . 1 3 1 7 1 . 1 1 3 1 . 1 14 Weapon 10 | . . 6 . . . . 3 . 1 . . . . . . . . . Tool/Special 1 | . . . . . . . . . . . . . . . . . 1 . Average Slot Usage (%) 80 | . 95 91 100 99 99 99 99 94 64 65 66 70 67 53 57 61 51 56 Engine 6 | . 12 9 11 11 11 9 9 8 5 7 6 7 3 4 1 . . . Core 1 | . . . . . . . . . . . . 4 5 1 3 3 . . Treads 11 | . 11 8 7 11 18 23 27 26 6 5 6 6 5 . . 1 3 5 Wheel 2 | . 16 6 14 10 3 3 . . . . . . 3 3 . 3 . . Device 9 | . 17 10 8 . 3 1 11 8 13 9 7 9 5 5 9 11 15 15 Storage 7 | . 8 10 11 11 11 9 9 9 6 8 6 6 5 5 5 5 5 5 Processor 7 | . . 9 11 11 11 9 9 9 8 6 6 6 5 3 . . . . Hackware 3 | . . . . . . 8 . . 2 . 5 5 11 11 10 5 5 5 Protection 3 | . . . 2 11 7 8 6 7 . 5 6 2 . . 1 4 . . Energy Gun 5 | . . 8 11 6 11 8 6 7 4 3 6 1 . . 4 10 . . Energy Cannon 2 | . . 8 . . . . . . 3 8 6 1 . 2 3 . 5 5 Ballistic Gun 9 | . 27 10 22 18 22 17 14 9 2 . . 9 8 . 1 2 . . Ballistic Cannon 1 | . . 1 . . . . 3 9 . . . . 1 2 . . . . Impact Weapon 1 | . . . . . . . . . 4 5 6 2 4 . . . . . Peak Build Rating 98 | 9 9 21 21 22 22 30 35 49 82 84 78 86 89 76 98 85 83 89 Average Rating 50 | 4 7 16 20 20 21 27 31 37 68 75 77 77 76 69 88 76 80 85 On Entrance 47 | . 9 5 21 21 22 22 28 34 48 75 77 78 75 71 76 81 76 83 Avg Prop Armor Cover (%) 12 | 25 14 9 9 . 8 11 . . . . . . 19 . . . . . Naked Turns . | . . . . . . . . . . . . . . . . . . . Heaviest Build 135 | 8 48 99 100 100 100 105 113 113 117 124 110 126 125 115 135 117 114 117 Greatest Support 156 | 16 32 40 40 40 40 60 62 62 127 134 121 121 121 121 117 147 156 156 Greatest Overweight (x) 7 | 1 2 6 6 3 6 6 1 2 2 1 . 1 7 . 5 1 . . Average Overweight (x) 1 | . . 3 3 2 3 2 1 1 1 . . . 3 . 1 . . . Largest Inventory Capacity 30 | 5 20 25 25 25 25 25 25 25 25 30 25 25 25 25 25 25 25 25 Average Capacity 24 | 5 14 20 25 25 25 25 25 25 25 25 25 25 25 25 25 25 25 25 Most Carried 25 | 5 10 25 25 25 25 25 25 25 25 25 25 25 25 25 25 19 25 25 Average Carried 22 | 3 6 17 24 24 24 24 22 24 24 24 24 24 24 23 22 17 23 24 Final Capacity 25 | 5 20 25 25 25 25 25 25 25 25 25 25 25 25 25 25 25 25 25 Final Carried 25 | 4 9 25 25 25 24 25 25 24 25 25 25 24 25 24 19 16 25 23 Scrap Engine Consumption 258 | . . . . . . . . 13 71 42 1 13 25 16 56 10 10 1 Constructs Created 15 | . . . . . . . . 2 3 2 . 1 2 1 1 2 1 . Constructs Modified 99 | . . . . . . . . . 29 18 . 5 6 8 25 5 3 . Class Distribution -------------------- 23% | Construct 20% | Bothacker-Construct 10% | Scavenger-Skirmisher 9% | Gunner 8% | Commander-Skirmisher 5% | Commander-Tank 4% | Commander-Mutant 4% | Scavenger-Mutant 3% | Mutant Dominant Class ---------------- Mutant | -10/Materials Gunner | -9/Materials Gunner | -9/Mines Scavenger-Mutant | -9/Exiles Scavenger-Skirmisher | -8/Mines Scavenger-Skirmisher | -8/Materials Commander-Tank | -8/Storage Commander-Skirmisher | -8/Recycling Construct | -6/Factory Construct | -6/Garrison Bothacker-Construct | -6/Factory Bothacker-Construct | -6/Garrison Bothacker-Construct | -5/Factory Bothacker-Construct | -5/Garrison Bothacker-Construct | -5/Extension Construct | -5/Cetus Construct | -5/Archives Construct | -5/Hub_04(d) Resources | -11 -10 -9 -9 -9 -8 -8 -8 -8 -6 -6 -6 -6 -5 -5 -5 -5 -5 -5 ----------- Run | Yrd Mat Mat Min Exi Min Mat Sto Rec Fac Gar Fac Gar Fac Gar Ext Cet Arc Hub Matter Collected 6655 | 286 275 561 84 . 201 544 813 87 807 276 . 762 268 358 989 161 183 . Remotely . | . . . . . . . . . . . . . . . . . . . Salvage Created 11145 | 79 547 1644 293 . 159 1206 893 174 2028 969 . 281 665 187 1080 239 571 130 Parts 539 | 10 37 109 6 . 6 65 45 9 82 45 . 16 23 6 45 6 22 7 Haulers Intercepted 14 | . 1 5 . . . 2 3 . 3 . . . . . . . . . Recyclers Shooed 13 | 1 . 1 1 . . 2 4 . 3 . . . 1 . . . . . Parts Field Recycled . | . . . . . . . . . . . . . . . . . . . Retrieved Matter . | . . . . . . . . . . . . . . . . . . . Parts Self-Destructed . | . . . . . . . . . . . . . . . . . . . Prevented . | . . . . . . . . . . . . . . . . . . . Parts Restored . | . . . . . . . . . . . . . . . . . . . Kills | -11 -10 -9 -9 -9 -8 -8 -8 -8 -6 -6 -6 -6 -5 -5 -5 -5 -5 -5 ------- Run | Yrd Mat Mat Min Exi Min Mat Sto Rec Fac Gar Fac Gar Fac Gar Ext Cet Arc Hub Combat Hostiles Destroyed 183 | . 12 38 2 . 3 17 14 2 29 15 . 9 8 5 16 6 4 3 Melee 5 | . . . . . . . . . 3 1 . . 1 . . . . . Guns 86 | . 12 15 1 . 3 16 10 2 9 5 . 3 2 . 2 6 . . Cannons 56 | . . 14 . . . . 4 . 11 3 . 2 4 3 8 . 4 3 AOE 31 | . . 9 1 . . 1 . . 5 3 . 4 1 2 5 . . . Classes Destroyed 20 | 1 6 3 . . 1 2 . . 3 . . . . 2 2 . . . Worker 11 | . 1 1 . . . 3 1 . 4 . . . 1 . . . . . Builder 6 | . . . . . . 2 . . 2 . . . . . 2 . . . Tunneler 6 | 4 . . . . . . . . . . . . . . 2 . . . Hauler 14 | . 1 5 . . . 2 3 . 3 . . . . . . . . . Recycler 15 | . 1 1 2 . . 2 2 1 2 . . . 2 . 2 . . . Mechanic 3 | . . 1 . . . . . . 2 . . . . . . . . . Operator 11 | . . . . . . 2 . . . . . . . . . . 9 . Watcher 15 | . 2 4 . . . 3 2 . 2 . . . 1 . . 1 . . Swarmer 42 | . 5 16 . . . 6 3 . 3 . . 4 . 2 3 . . . Grunt 68 | . 7 13 . . 2 6 4 1 17 5 . 1 2 1 4 3 . 2 Brawler 3 | . . . . . . . . . . . . . . 1 2 . . . Duelist 4 | . . 1 . . . 1 . . 1 1 . . . . . . . . Protector 1 | . . . . . . . . . . . . . . . 1 . . . Sentry 35 | . . 8 2 . . 4 6 1 1 6 . . . . 2 . 4 1 Demolisher 1 | . . . . . . . . . . . . . . 1 . . . . Specialist 1 | . . . . . . . . . 1 . . . . . . . . . Hunter 10 | . . . . . 1 . 1 . . 2 . 2 3 . 1 . . . Programmer 13 | . . . . . . . . . 6 1 . 2 3 . 1 . . . Heavy 1 | . . . . . . . . . 1 . . . . . . . . . Behemoth 2 | . . . . . . . . . . . . . . . 2 . . . Cetus Guard 3 | . . . . . . . . . . . . . . . . 3 . . Thug 1 | . . . . . . . . . . . . . . . 1 . . . Best Kill Streak 8 | 4 8 5 2 . 2 6 4 1 4 4 . 4 3 2 6 3 5 3 Combat Bots Only 7 | . 7 5 2 . 2 3 4 1 4 4 . 4 2 2 4 3 1 3 Max Kills in Single Turn 3 | 1 1 3 1 . 1 2 2 1 3 1 . 2 1 1 3 1 1 1 Gunslinging 1 | . . 1 . . . 1 1 . . . . . . . . . . . Exploded 3 | . . 3 1 . . 1 . . 1 1 . 2 1 1 2 . . . Melee 1 | . . . . . . . . . 1 1 . . 1 . . . . . Uniques/NPCs Destroyed 1 | . . . . . . . . . . . . . . . 1 . . . A7 (-5/Extension) Combat | -11 -10 -9 -9 -9 -8 -8 -8 -8 -6 -6 -6 -6 -5 -5 -5 -5 -5 -5 -------- Run | Yrd Mat Mat Min Exi Min Mat Sto Rec Fac Gar Fac Gar Fac Gar Ext Cet Arc Hub Hostile Shots Fired 1541 | . 141 149 16 . 12 59 27 2 240 338 . 156 75 61 142 84 26 13 Missed 421 | . 29 41 6 . 2 11 7 . 68 117 . 32 16 14 46 22 5 5 Hits 1120 | . 112 108 10 . 10 48 20 2 172 221 . 124 59 47 96 62 21 8 Melee 12 | . . . . . . 2 . . . 4 . . . 2 4 . . . Projectile 1108 | . 112 108 10 . 10 46 20 2 172 217 . 124 59 45 92 62 21 8 AOE 4 | . . . . . . . . . 1 . . . . 3 . . . . Critical Strikes 42 | . 2 2 . . . 2 . . 7 3 . 8 3 1 9 5 . . Actively Blocked 4 | . . . . . . . . . . . . 4 . . . . . . Part Disruptions 1 | . . . . . . . . . . . . . 1 . . . . . Damage Taken 19418 | . 1134 1353 188 . 184 722 205 40 3239 2549 . 2503 1331 1186 2412 1499 579 294 Core 2435 | . 233 351 . . . 103 . . 236 228 . 268 57 152 423 101 105 178 Absorbed by Shields 313 | . . . . . . . 72 8 72 . . 17 . . 144 . . . Reduced by Siege Mode 125 | . . . . . . . . . . . . 125 . . . . . . Regen/Repaired (Parts) 5954 | . . . . . . . 43 10 2070 717 . 701 221 486 978 351 377 . Core Remaining (%) 42 | 100 6 . . . 12 . . 81 . . . 13 . . . . . . Volleys Fired 733 | 8 64 98 11 . 12 50 57 3 130 57 . 47 41 21 65 39 21 9 Largest 3 | 2 2 3 3 . 3 3 3 3 2 3 . 3 3 2 3 3 2 1 Hottest 269 | 40 40 180 91 . 91 93 125 110 115 191 . 148 152 116 178 199 269 186 Shots Fired 1416 | 16 122 204 30 . 31 128 134 9 210 105 . 72 86 35 119 81 25 9 Gun 966 | 16 120 132 30 . 31 128 102 6 111 49 . 46 57 2 53 79 4 . Cannon 379 | . . 66 . . . . 29 3 94 52 . 5 27 28 45 1 21 8 Launcher 37 | . 2 4 . . . . 3 . 4 3 . 10 . 3 7 1 . . Special 34 | . . 2 . . . . . . 1 1 . 11 2 2 14 . . 1 Kinetic 777 | 16 120 101 22 . 24 99 114 6 38 13 . 46 81 14 32 51 . . Thermal 406 | . . 53 . . . . . . 146 70 . . 3 16 57 28 25 8 Explosive 37 | . 2 4 . . . . 3 . 4 3 . 10 . 3 7 1 . . Electromagnetic 164 | . . 46 8 . 7 29 17 3 21 18 . 5 . . 9 1 . . Robot Hit Streak 29 | 3 8 12 25 . 26 16 29 17 19 19 . 25 8 10 11 11 13 4 Robot Miss Streak 9 | 1 6 9 1 . 2 8 4 1 6 4 . 3 5 2 9 4 2 1 Penetration Max 1 | . . . . . . . . . . . . . 1 1 1 1 . . Secondary Targets 21 | . 4 3 1 . 1 8 1 . 1 . . . . . . 2 . . Max Gunslinging Chain 2 | . 1 2 1 . 1 2 1 . 1 . . . . . . 1 . . Shots Hit Robots 1004 | 10 71 126 26 6 24 89 92 4 166 88 . 61 55 25 65 53 36 7 Core Hits 476 | 5 36 70 6 . 8 49 38 4 76 40 . 20 21 11 47 27 14 4 Critical Kills 8 | . . . . . . 1 . . 1 . . 1 4 1 . . . . Critical Parts Destroyed 22 | . 1 . . . . . 1 . 3 4 . . 8 3 . 2 . . Critical Strikes 42 | . 1 1 . . . 1 1 . 6 5 . 1 12 5 5 3 1 . Burn 7 | . . . . . . . . . 2 . . . . . 5 . . . Destroy 24 | . 1 . . . . 1 1 . . 2 . 1 11 5 . 2 . . Blast 2 | . . 1 . . . . . . . . . . . . . 1 . . Corrupt 1 | . . . . . . . . . . 1 . . . . . . . . Smash 7 | . . . . . . . . . 4 2 . . 1 . . . . . Sever 1 | . . . . . . . . . . . . . . . . . 1 . Melee Attacks 120 | . . . . 6 . 3 5 . 30 29 1 9 10 . 2 1 24 . Impact 79 | . . . . . . . . . 30 29 1 9 10 . . . . . Slashing 35 | . . . . . . 3 5 . . . . . . . 2 1 24 . Piercing . | . . . . . . . . . . . . . . . . . . . Sneak Attacks 24 | . . . . 6 . . . . 4 . . . 1 . . . 13 . Combat Hostiles . | . . . . . . . . . . . . . . . . . . . Follow-up Attacks . | . . . . . . . . . . . . . . . . . . . Damage Inflicted 28081 | 111 632 2484 451 . 404 1787 1863 168 4867 2717 . 2144 1891 740 3516 1415 2534 357 Guns 11992 | 111 632 1068 396 . 352 1442 1290 80 1450 1049 . 947 846 . 1032 1260 37 . Cannons 8229 | . . 859 . . . . 530 59 2214 826 . 80 474 547 1490 26 767 357 Explosions 4325 | . . 509 55 . 44 325 . . 522 415 . 964 307 193 907 84 . . Melee 3304 | . . . . . . . . . 665 425 . 153 199 . 87 45 1730 . Ramming 207 | . . 24 . . 8 20 43 29 16 2 . . 65 . . . . . Kinetic 9517 | 111 632 678 268 . 222 1032 1529 78 579 387 . 947 1288 308 614 844 . . Thermal 9313 | . . 873 55 . 44 325 . . 2890 1279 . 125 339 239 1567 416 804 357 Explosive 3242 | . . 321 . . . . . . 522 376 . 839 . 193 907 84 . . Electromagnetic 2498 | . . 588 128 . 130 410 291 61 195 248 . 80 . . 341 26 . . Impact 1442 | . . . . . . . . . 665 425 . 153 199 . . . . . Slashing 1862 | . . . . . . . . . . . . . . . 87 45 1730 . Piercing . | . . . . . . . . . . . . . . . . . . . Highest Corruption 12 | . . . . . . . . 1 6 4 4 9 6 10 12 12 12 . Average Corruption 5 | . . . . . . . . 1 2 3 4 7 4 8 10 12 7 . Corruption Purged 17 | . . . . . . . . . 5 . . . . . . . 12 . Corruption Blocked . | . . . . . . . . . . . . . . . . . . . Effects 277 | . . . . . . . . 11 45 32 7 32 24 27 73 11 15 . Message Errors 67 | . . . . . . . . 3 11 8 2 10 5 10 11 1 6 . Matter Fused 66 | . . . . . . . . 3 10 9 2 9 9 5 15 1 3 . Heat Flow Errors 41 | . . . . . . . . . 5 4 1 6 1 4 11 5 4 . Energy Discharges 28 | . . . . . . . . 3 5 1 1 1 1 3 11 2 . . Parts Rejected 4 | . . . . . . . . . 1 1 . . . . 2 . . . Parts Fused 4 | . . . . . . . . . 1 . . . . . 2 . 1 . Data Loss (minor) 32 | . . . . . . . . 2 4 4 . 2 6 5 8 1 . . Data Loss (major) 16 | . . . . . . . . . 3 2 . 2 2 . 5 1 1 . Misfires 1 | . . . . . . . . . . . . . . . 1 . . . Alerts 11 | . . . . . . . . . 3 3 1 . . . 4 . . . Misdirections 1 | . . . . . . . . . . . . . . . 1 . . . Weapon Failures 6 | . . . . . . . . . 2 . . 2 . . 2 . . . Overload Shots . | . . . . . . . . . . . . . . . . . . . Overflow Damage 1965 | . . 100 . . . . 1 1 417 166 . 107 317 . 48 . 808 . Projectiles 167 | . . 2 . . . . 1 1 121 . . . . . 33 . 9 . Explosions 332 | . . 98 . . . . . . 8 . . 43 168 . 15 . . . Melee 1466 | . . . . . . . . . 288 166 . 64 149 . . . 799 . Knockbacks 23 | . . . . . 1 1 3 . 3 4 . 1 9 1 . . . . Impact 11 | . . . . . 1 1 . . 3 4 . 1 1 . . . . . Kinetic 12 | . . . . . . . 3 . . . . . 8 1 . . . . Secondary . | . . . . . . . . . . . . . . . . . . . Self-Inflicted Damage 790 | . . 245 34 . . 77 . . 183 . . 35 148 . 68 . . . Shots 17 | . . 6 1 . . 2 . . 2 . . 2 2 . 2 . . . Rammed 19 | . . 1 . . 1 3 3 3 . 1 . . 7 . . . . . Targets Rammed 26 | . . 5 . . 1 3 3 3 3 1 . . 7 . . . . . Kicked 5 | . . 4 . . . . . . 1 . . . . . . . . . Crushed 2 | . . . . . . . . . 2 . . . . . . . . . Highest Temperature 616 | . 36 295 194 . 99 267 161 146 285 267 87 526 351 294 616 270 437 593 Average Temperature 84 | . 10 56 77 . 51 57 47 67 48 70 51 150 101 102 157 94 154 289 Received Heat Transfer 4181 | . 426 357 45 . 9 252 26 15 844 531 . 279 45 243 659 324 63 63 Effects 27 | . . 1 . . . . . . 4 5 . 2 3 1 9 . . 2 Shutdowns 4 | . . . . . . . . . . . . . 1 . 2 . . 1 Energy Bleed 5 | . . 1 . . . . . . . 2 . . 1 1 . . . . Interference 10 | . . . . . . . . . 4 3 . . 1 . 2 . . . Matter Decay 3 | . . . . . . . . . . . . 1 . . 2 . . . Short Circuit 1 | . . . . . . . . . . . . . . . 1 . . . Damage (minor) 2 | . . . . . . . . . . . . 1 . . 1 . . . Damage (core) 2 | . . . . . . . . . . . . . . . 1 . . 1 Siege Activations 1 | . . . . . . . . . . . . 1 . . . . . . Total Turns 35 | . . . . . . . . . . . . 35 . . . . . . Longest Duration 35 | . . . . . . . . . . . . 35 . . . . . . Martial Activations . | . . . . . . . . . . . . . . . . . . . Shielding Activations . | . . . . . . . . . . . . . . . . . . . Robots Disrupted 1 | . . . . . . . . . . 1 . . . . . . . . Combat Hostiles 1 | . . . . . . . . . . 1 . . . . . . . . Robots Corrupted 9 | . . . . . . . . . 4 3 . . 1 . 1 . . . Combat Hostiles 4 | . . . . . . . . . . 3 . . . . 1 . . . Parts Fried 25 | . . 3 1 . . 1 . . 8 7 . . 3 . 2 . . . Impact Corruptions 23 | . . . . . . . . . 10 6 . 1 6 . . . . . Robots Melted 1 | . . . . . . . . . 1 . . . . . . . . . Combat Hostiles 1 | . . . . . . . . . 1 . . . . . . . . . Parts Melted 15 | . . 5 . . . . . 1 6 1 . . . 1 1 . . . Heat Transferred 12188 | . . 1582 . . 50 450 . . 4301 1800 . 100 187 370 1720 777 629 222 Parts Sabotaged . | . . . . . . . . . . . . . . . . . . . Parts Stolen . | . . . . . . . . . . . . . . . . . . . Parts Stripped . | . . . . . . . . . . . . . . . . . . . Power Chain Reactions 12 | . . 3 1 . 1 4 . . . 1 . 1 1 . . . . . Alert | -11 -10 -9 -9 -9 -8 -8 -8 -8 -6 -6 -6 -6 -5 -5 -5 -5 -5 -5 ------- Run | Yrd Mat Mat Min Exi Min Mat Sto Rec Fac Gar Fac Gar Fac Gar Ext Cet Arc Hub Maximum Alert Level 4 | . . 2 . . . 1 1 1 2 4 3 3 1 2 4 2 1 . Low Security (%) 49 | 100 100 62 100 . 100 93 55 98 8 . . . 68 72 . . 55 100 Level 1 21 | . . 10 . . . 6 44 1 57 . . 2 31 3 25 . 44 . Level 2 16 | . . 27 . . . . . . 34 20 87 44 . 24 28 100 . . Level 3 7 | . . . . . . . . . . 18 12 52 . . 43 . . . Level 4 4 | . . . . . . . . . . 60 . . . . 2 . . . Level 5 . | . . . . . . . . . . . . . . . . . . . High Security . | . . . . . . . . . . . . . . . . . . . Max Security . | . . . . . . . . . . . . . . . . . . . Peak Influence 1378 | 10 120 496 188 . 60 248 377 214 638 1378 718 790 393 630 1194 664 270 64 Initial 718 | . . 27 188 . . . 98 147 300 438 718 391 393 84 330 664 232 1 Average 297 | 2 74 199 37 . 4 88 176 51 372 1014 643 647 181 236 577 598 157 6 Influence Increases 9958 | 20 339 1285 57 . 119 665 979 328 1573 1000 1 509 340 576 1688 217 178 84 Destroy 0b10 Robot/C 5120 | . 240 760 40 . 80 360 440 120 720 540 . 260 160 320 800 140 80 60 Destroy 0b10 Robot/NC 445 | 20 25 60 10 . . 70 50 5 80 5 . . 25 . 45 5 45 . Destroy Leader 994 | . 36 198 . . 20 100 160 . 182 30 . 40 44 20 134 10 . 20 Allied During Kill 924 | . . . 4 . 12 2 189 90 62 15 . 11 . 54 481 4 . . Trap Triggered on 0b10 30 | . . . . . . 30 . . . . . . . . . . . . Successful Hack 179 | . . 22 . . . 10 27 22 53 . . 10 . . 28 7 . . Select Force Hacks 210 | . 30 30 . . . 60 . 90 . . . . . . . . . . Disable Machine 330 | . . 105 . . . . 75 . 60 . . . 15 . 15 15 45 . Anti-Garrison Action 250 | . . . . . . . . . . 150 . 50 . 50 . . . . Destroy Structure 666 | . 8 65 3 . 7 18 23 1 56 65 1 78 96 57 140 36 8 4 Advance Influence 300 | . . . . . . . . . 300 . . . . . . . . . Partial Spotted 30 | . . . . . . . . . 15 . . . . . 15 . . . Lose Combat Pursuer 480 | . . 45 . . . 15 15 . 45 195 . 60 . 75 30 . . . Influence Decreases 9894 | 20 274 866 541 . 119 432 835 705 947 258 810 318 969 67 1132 822 755 24 Entered New Map 3273 | . . 38 296 . . . 135 230 . 188 650 168 357 37 300 522 349 3 Time Decay 5280 | 20 204 568 245 . 92 412 700 411 727 . 160 . 562 . 612 170 386 11 Lost Part 487 | . 70 100 . . 7 . . . 30 50 . 30 30 30 60 50 20 10 Lost Ally 640 | . . 10 . . 20 20 . . 190 20 . 120 20 . 160 80 . . Purge Threat 214 | . . 150 . . . . . 64 . . . . . . . . . . Squads Dispatched 37 | . 1 4 . . . 4 3 . 13 . . . 3 . 7 1 . 1 Investigation 11 | . 1 2 . . . 2 1 . 1 . . . . . 3 1 . . Extermination 8 | . . . . . . . . . 5 . . . 3 . . . . . Reinforcement 13 | . . 2 . . . 1 1 . 7 . . . . . 1 . . 1 Assault 3 | . . . . . . . . . . . . . . . 3 . . . Garrison 2 | . . . . . . 1 1 . . . . . . . . . . . Intercept . | . . . . . . . . . . . . . . . . . . . Searches Triggered . | . . . . . . . . . . . . . . . . . . . Construction Impeded . | . . . . . . . . . . . . . . . . . . . Haulers Reinforced 2 | . . . . . . . . . 2 . . . . . . . . . Active Scanning Responses . | . . . . . . . . . . . . . . . . . . . Cargo Convoy Interrupts 1 | . . . . . . . . . 1 . . . . . . . . . Stealth | -11 -10 -9 -9 -9 -8 -8 -8 -8 -6 -6 -6 -6 -5 -5 -5 -5 -5 -5 --------- Run | Yrd Mat Mat Min Exi Min Mat Sto Rec Fac Gar Fac Gar Fac Gar Ext Cet Arc Hub Distress Signals 18 | . . 4 . . . 1 4 1 2 . . . 1 . 4 1 . . Communications Jammed . | . . . . . . . . . . . . . . . . . . . Distress Signals . | . . . . . . . . . . . . . . . . . . . Times Spotted 357 | . 22 58 2 . 4 25 21 7 53 32 . 20 16 18 50 8 17 4 Peak Tracking Total 10 | . 6 7 2 . 3 4 3 2 5 10 . 4 8 5 9 5 1 3 Tactical Retreats 19 | . . 2 . . . 1 1 . 3 5 . 3 . 3 1 . . . Traps | -11 -10 -9 -9 -9 -8 -8 -8 -8 -6 -6 -6 -6 -5 -5 -5 -5 -5 -5 ------- Run | Yrd Mat Mat Min Exi Min Mat Sto Rec Fac Gar Fac Gar Fac Gar Ext Cet Arc Hub Traps Triggered 19 | . . 1 . . . 1 . . 5 5 . 1 . 3 3 . . . Indirectly . | . . . . . . . . . . . . . . . . . . . Trap Hack Attempts 15 | . . 15 . . . . . . . . . . . . . . . . Triggered . | . . . . . . . . . . . . . . . . . . . Disarmed 1 | . . 1 . . . . . . . . . . . . . . . . Reprogrammed . | . . . . . . . . . . . . . . . . . . . Reused 3 | . . . . . . 3 . . . . . . . . . . . . Traps Extracted . | . . . . . . . . . . . . . . . . . . . Installed 3 | . . . . . . 3 . . . . . . . . . . . . Triggered 3 | . . . . . . 3 . . . . . . . . . . . . Most Traps Carried 3 | . . . 3 3 3 3 . . . . . . . . . . . . Machines | -11 -10 -9 -9 -9 -8 -8 -8 -8 -6 -6 -6 -6 -5 -5 -5 -5 -5 -5 ---------- Run | Yrd Mat Mat Min Exi Min Mat Sto Rec Fac Gar Fac Gar Fac Gar Ext Cet Arc Hub Machines Disabled 28 | . 1 7 . . . . 5 . 4 1 . 1 1 1 3 1 3 . Max in Single Turn 3 | . 1 1 . . . . 1 . 3 1 . 1 1 1 2 1 1 . Garrison Relay 3 | . . . . . . . . . . 1 . 1 . 1 . . . . Phase Generator 1 | . . . . . . . . . . . . . . 1 . . . . Energy Cycler 2 | . . . . . . . . . . . . . . . 2 . . . Machines Repaired . | . . . . . . . . . . . . . . . . . . . Machines Dismantled 1 | . . . . . . . 1 . . . . . . . . . . . Machines Sabotaged . | . . . . . . . . . . . . . . . . . . . Overloaded Fab Kills . | . . . . . . . . . . . . . . . . . . . Hacking | -11 -10 -9 -9 -9 -8 -8 -8 -8 -6 -6 -6 -6 -5 -5 -5 -5 -5 -5 --------- Run | Yrd Mat Mat Min Exi Min Mat Sto Rec Fac Gar Fac Gar Fac Gar Ext Cet Arc Hub Machines Accessed 73 | . 2 10 . 3 . 7 11 11 10 1 1 1 4 1 8 2 . 1 Terminals 44 | . 1 6 . . . 5 7 6 4 1 . 1 1 1 8 2 . 1 Fabricators 1 | . . . . . . . . . 1 . . . . . . . . . Repair Stations 2 | . . 1 . . . . 1 . . . . . . . . . . . Recycling Units 13 | . 1 1 . . . 2 2 4 2 . . . 1 . . . . . Scanalyzers 5 | . . 2 . . . . . . 2 . . . 1 . . . . . Garrison Access 4 | . . . . . . . 1 . 1 . 1 . 1 . . . . . Total Hacks 193 | . 3 31 . 3 . 29 31 32 27 2 2 1 6 1 15 8 . 2 Successful 112 | . 3 20 . 3 . 16 16 21 16 1 1 1 3 . 8 3 . . Failed 81 | . . 11 . . . 13 15 11 11 1 1 . 3 1 7 5 . 2 Catastrophic 17 | . . 1 . . . 3 . 1 4 . . . 2 1 4 1 . . Database Lockouts . | . . . . . . . . . . . . . . . . . . . Manual 115 | . 3 15 . 1 . 29 33 23 7 . 1 . 1 . 2 . . . Terminals 127 | . 2 21 . . . 21 21 19 12 2 . 1 2 1 15 8 . 2 Fabricators 3 | . . . . . . . . . 3 . . . . . . . . . Repair Stations 4 | . . 2 . . . . 2 . . . . . . . . . . . Recycling Units 26 | . 1 1 . . . 8 7 6 2 . . . 1 . . . . . Scanalyzers 17 | . . 7 . . . . . . 8 . . . 2 . . . . . Garrison Access 6 | . . . . . . . 1 . 2 . 2 . 1 . . . . . Terminal Hacks 38 | . . 5 . 3 . 2 1 11 4 1 . 1 . . 7 3 . . Record 11 | . . . . 2 . . . 5 1 . . . . . . 3 . . Part Schematic 1 | . . . . . . . 1 . . . . . . . . . . . Robot Schematic 2 | . . . . . . 1 . 1 . . . . . . . . . . Robot Analysis 2 | . . 1 . . . . . . 1 . . . . . . . . . Prototype ID Bank 5 | . . 2 . . . . . 1 1 . . . . . 1 . . . Open Door 4 | . . . . . . . . . . . . . . . 4 . . . Branch Access Points 2 | . . 1 . . . 1 . . . . . . . . . . . . Emergency Access Points 2 | . . . . . . . . . . 1 . 1 . . . . . . Unreport Threat 3 | . . 1 . . . . . 2 . . . . . . . . . . Locate Traps 1 | . . . . . . . . . . . . . . . 1 . . . Registered Components 1 | . . . . . . . . . . . . . . . 1 . . . Zone Layout 1 | . . . . . . . . . 1 . . . . . . . . . Proto ID Catalog 1 | . . . . 1 . . . . . . . . . . . . . . Release Object 2 | . . . . . . . . 2 . . . . . . . . . . Fabricator Hacks 2 | . . . . . . . . . 2 . . . . . . . . . Load Schematic 1 | . . . . . . . . . 1 . . . . . . . . . Build 1 | . . . . . . . . . 1 . . . . . . . . . Repair Station Hacks 3 | . . 1 . . . . 2 . . . . . . . . . . . Scan Component 2 | . . 1 . . . . 1 . . . . . . . . . . . Repair 1 | . . . . . . . 1 . . . . . . . . . . . Recycling Unit Hacks 1 | . . . . . . 1 . . . . . . . . . . . . Retrieve Components 1 | . . . . . . 1 . . . . . . . . . . . . Scanalyzer 14 | . . 5 . . . . . . 7 . . . 2 . . . . . Insert Component 4 | . . 1 . . . . . . 2 . . . 1 . . . . . Analyze 6 | . . . . . . . . . 5 . . . 1 . . . . . Retrieve Study 4 | . . 4 . . . . . . . . . . . . . . . . Garrison Access Hacks 4 | . . . . . . . 1 . 1 . 1 . 1 . . . . . Unlock Access 4 | . . . . . . . 1 . 1 . 1 . 1 . . . . . Unauthorized Hacks 50 | . 3 9 . . . 13 12 10 2 . . . . . 1 . . . Terminals 36 | . 2 8 . . . 7 10 7 1 . . . . . 1 . . . Assimilate 2 | . 1 . . . . . 1 . . . . . . . . . . . Botnet 12 | . . 2 . . . 1 4 3 1 . . . . . 1 . . . Operators 1 | . . . . . . 1 . . . . . . . . . . . . Skim 21 | . 1 6 . . . 5 5 4 . . . . . . . . . . Fabricators . | . . . . . . . . . . . . . . . . . . . Repair Stations . | . . . . . . . . . . . . . . . . . . . Recycling Units 14 | . 1 1 . . . 6 2 3 1 . . . . . . . . . Reject 3 | . . . . . . 2 1 . . . . . . . . . . . Recyclers 3 | . . . . . . 2 . . 1 . . . . . . . . . Mask 1 | . . . . . . . 1 . . . . . . . . . . . Tunnel 7 | . 1 1 . . . 2 . 3 . . . . . . . . . . Scanalyzers . | . . . . . . . . . . . . . . . . . . . Garrison Access . | . . . . . . . . . . . . . . . . . . . Data Cores Recovered 2 | . . . . . . 1 1 . . . . . . . . . . . Used 1 | . . . . . . 1 . . . . . . . . . . . . Hacking Detections 55 | . 1 7 . . . 5 9 7 10 1 1 . 4 1 6 2 . 1 Full Trace Events 7 | . . . . . . . 1 3 . . . . . . 2 1 . . Feedback Events 1 | . . . . . . . . 1 . . . . . . . . . . Corruption 1 | . . . . . . . . 1 . . . . . . . . . . Feedback Blocked . | . . . . . . . . . . . . . . . . . . . Robot Schematics Acquired 2 | . . . . . . 1 . 1 . . . . . . . . . . Robots Built . | . . . . . . . . . . . . . . . . . . . Authchips . | . . . . . . . . . . . . . . . . . . . Time . | . . . . . . . . . . . . . . . . . . . Total Robot Build Rating . | . . . . . . . . . . . . . . . . . . . Part Schematics Acquired 4 | . . . . . . . 1 . 2 . . . 1 . . . . . Parts Built 2 | . . . . . . . . . 2 . . . . . . . . . Authchips 1 | . . . . . . . . . 1 . . . . . . . . . Time 36 | . . . . . . . . . 36 . . . . . . . . . Total Part Build Rating 6 | . . . . . . . . . 6 . . . . . . . . . Part Studies Acquired 4 | . . 4 . . . . . . . . . . . . . . . . Parts Repaired 1 | . . . . . . . 1 . . . . . . . . . . . Time 51 | . . . . . . . 51 . . . . . . . . . . . Parts Recycled . | . . . . . . . . . . . . . . . . . . . Recycled Matter . | . . . . . . . . . . . . . . . . . . . Retrieved Matter . | . . . . . . . . . . . . . . . . . . . Retrieved Components . | . . . . . . . . . . . . . . . . . . . Parts Scanalyzed 3 | . . . . . . . . . 2 . . . 1 . . . . . Part Schematics Acquired 3 | . . . . . . . . . 2 . . . 1 . . . . . Parts Damaged . | . . . . . . . . . . . . . . . . . . . Bothacking | -11 -10 -9 -9 -9 -8 -8 -8 -8 -6 -6 -6 -6 -5 -5 -5 -5 -5 -5 ------------ Run | Yrd Mat Mat Min Exi Min Mat Sto Rec Fac Gar Fac Gar Fac Gar Ext Cet Arc Hub Used RIF Installer 3 | . . . . . . . . . . 1 . 1 . 1 . . . . Hotswap 1 | . . . . . . . . . . . . 1 . . . . . . Program Shield 1 | . . . . . . . . . . . . . . 1 . . . . Robots Hacked 21 | . . . . 4 . . . . . . . 5 1 1 9 . . 1 Non-combat 11 | . . . . 3 . . . . . . . . 1 1 5 . . 1 Combat 10 | . . . . 1 . . . . . . . 5 . . 4 . . . Robot Hacks Applied 23 | . . . . 5 . . . . . . . 5 1 1 10 . . 1 parse_system 8 | . . . . 5 . . . . . . . 1 1 . 1 . . . drop_inventory 2 | . . . . . . . . . . . . . . . 2 . . . locate_traps 1 | . . . . . . . . . . . . . . . . . . 1 amplify_resonance 2 | . . . . . . . . . . . . . . . 2 . . . overwrite_iff 2 | . . . . . . . . . . . . . . . 2 . . . streamctrl_high 1 | . . . . . . . . . . . . 1 . . . . . . formatsys_low 1 | . . . . . . . . . . . . . . 1 . . . . formatsys_high 6 | . . . . . . . . . . . . 3 . . 3 . . . Relay Couplers Released 10 | . . . . . . . . . . 4 . 3 . 3 . . . . Machine Destruction 10 | . . . . . . . . . . 4 . 3 . 3 . . . . Attached 6 | . . . . . . . . . . . . 2 . 1 3 . . . Fabnet Peak Effective % . | . . . . . . . . . . . . . . . . . . . Robots Rewired 22 | . . . . . . . 2 7 . . . 2 . 1 10 . . . Allies Hacked 2 | . . . . . . . . . 2 . . . . . . . . . Hacks Repelled . | . . . . . . . . . . . . . . . . . . . Allies | -11 -10 -9 -9 -9 -8 -8 -8 -8 -6 -6 -6 -6 -5 -5 -5 -5 -5 -5 -------- Run | Yrd Mat Mat Min Exi Min Mat Sto Rec Fac Gar Fac Gar Fac Gar Ext Cet Arc Hub Total Allies 55 | . 1 . 4 . . . 10 7 1 1 . 7 1 3 20 . . . Largest Group 16 | . 1 1 4 3 3 1 10 16 11 1 . 4 1 3 10 6 . . Highest-Rated Group 444 | . 10 10 71 40 40 16 173 254 187 85 . 159 54 113 444 176 . . Highest-Rated Ally 159 | . 10 10 31 16 16 16 29 29 90 85 . 81 54 49 159 39 . . Total Orders 17 | . . . 2 . . . 2 1 . 4 . 5 . 2 1 . . . STAY 7 | . . . 1 . . . 1 . . 1 . 3 . . 1 . . . ROAM 1 | . . . . . . . . . . 1 . . . . . . . . FOLLOW 5 | . . . 1 . . . 1 . . 1 . 2 . . . . . . GUARD 1 | . . . . . . . . . . 1 . . . . . . . . AID 2 | . . . . . . . . . . . . . . 2 . . . . PICKUP 1 | . . . . . . . . 1 . . . . . . . . . . Ally Attacks 476 | . . . . . 22 8 62 54 63 25 . 31 3 34 163 11 . . Total Damage 9981 | . . . . . 214 103 829 887 1013 1122 . 617 87 1057 3764 288 . . Kills 94 | . . . . . 1 1 11 9 8 12 . 4 1 11 33 3 . . Allies Corrupted . | . . . . . . . . . . . . . . . . . . . Allies Melted 2 | . . . . . . . . . . . . . . . 2 . . . Field Lobotomies 5 | . . . . . . . . . 1 1 . 1 1 1 . . . . Intel | -11 -10 -9 -9 -9 -8 -8 -8 -8 -6 -6 -6 -6 -5 -5 -5 -5 -5 -5 ------- Run | Yrd Mat Mat Min Exi Min Mat Sto Rec Fac Gar Fac Gar Fac Gar Ext Cet Arc Hub Active Infowar (turns) 8828 | 24 398 2016 827 . 287 248 750 1437 2839 2 . . . . . . . . Optics 248 | . . 248 . . . . . . . . . . . . . . . . Terrain 213 | 22 175 16 . . . . . . . . . . . . . . . . Structural 5396 | . . 573 . . 287 248 750 1437 2099 2 . . . . . . . . Seismic 2676 | 24 398 1427 827 . . . . . . . . . . . . . . . Machine Analysis 1061 | . . . . . . . . . 1061 . . . . . . . . . Robot Analysis Total 2 | . . 1 . . . . . . 1 . . . . . . . . . Derelict Logs Recovered 1 | . . . 1 . . . . . . . . . . . . . . . Drone Launches . | . . . . . . . . . . . . . . . . . . . Drone Recoveries . | . . . . . . . . . . . . . . . . . . . Exploration | -11 -10 -9 -9 -9 -8 -8 -8 -8 -6 -6 -6 -6 -5 -5 -5 -5 -5 -5 ------------- Run | Yrd Mat Mat Min Exi Min Mat Sto Rec Fac Gar Fac Gar Fac Gar Ext Cet Arc Hub Turns Passed 24728 | 89 452 2220 1109 971 1052 1614 2999 1989 3529 1545 320 1050 1664 780 2003 359 903 80 Spaces Moved 10726 | 82 222 1052 669 550 453 669 1246 879 1470 705 30 418 638 352 789 145 298 59 Core 87 | 68 8 11 . . . . . . . . . . . . . . . . Treads 6159 | . . 106 109 199 313 417 1246 879 1113 700 30 418 299 11 . 51 209 59 Legs 953 | . . 319 . . . . . . 226 5 . . . 117 186 11 89 . Wheels 2862 | 14 214 581 560 351 140 252 . . . . . . 339 224 104 83 . . Hover 499 | . . . . . . . . . . . . . . . 499 . . . Flight 166 | . . 35 . . . . . . 131 . . . . . . . . . Fastest Speed 50 | 50 100 50 135 135 180 180 200 198 107 148 176 176 180 142 142 135 96 96 Average Speed 186 | 61 114 166 157 172 221 194 207 207 197 173 176 197 199 188 211 166 112 96 Slowest Speed 428 | 100 150 320 240 240 240 240 208 240 240 218 176 246 281 211 428 187 152 96 Overloaded Moves . | . . . . . . . . . . . . . . . . . . . Propulsion Burnouts . | . . . . . . . . . . . . . . . . . . . Robots Hopped . | . . . . . . . . . . . . . . . . . . . Potential Cave-ins . | . . . . . . . . . . . . . . . . . . . Cave-ins Triggered . | . . . . . . . . . . . . . . . . . . . Exploration Rate (%) 56 | 3 39 75 98 77 81 45 96 98 43 56 1 44 18 50 80 64 96 7 Regions Visited 18 Branch Regions 9 Pre-discovered Areas 14 | . 1 2 1 1 . 3 3 3 . . . . . . . . . . Known Exits Taken 7 | . . 1 . . . 1 1 1 1 . 1 . 1 . . . . . Unknown Exits Taken 8 | 1 1 . 1 1 1 . . . . . . . . . 1 1 1 . Scrap Searched 2 | . . . 1 . 1 . . . . . . . . . . . . . Spaces Dug 44 | . . . . . . 3 2 . 15 15 1 . 7 . . . 1 . Terrain Destroyed 534 | . 11 60 1 . 7 16 22 1 49 48 1 84 65 38 95 30 4 2 Melee 42 | . . . . . . 3 . . 15 15 1 . 7 . . . 1 . Projectile 60 | . . . . . . . 4 1 9 . . . 13 2 14 12 3 2 AOE 432 | . 11 60 1 . 7 13 18 . 25 33 . 84 45 36 81 18 . . Terrain Rammed . | . . . . . . . . . . . . . . . . . . . Walls Destroyed . | . . . . . . . . . . . . . . . . . . . Machines Disabled . | . . . . . . . . . . . . . . . . . . . Actions | -11 -10 -9 -9 -9 -8 -8 -8 -8 -6 -6 -6 -6 -5 -5 -5 -5 -5 -5 --------- Run | Yrd Mat Mat Min Exi Min Mat Sto Rec Fac Gar Fac Gar Fac Gar Ext Cet Arc Hub Total 13993 | 103 315 1357 699 565 475 870 1528 1040 1868 872 296 559 924 438 1016 190 805 73 Wait 1541 | . 11 76 4 . 4 90 115 26 171 47 262 39 207 31 9 3 444 2 Move 10710 | 81 221 1051 668 549 452 668 1245 878 1469 704 30 417 638 351 788 144 297 59 Hop . | . . . . . . . . . . . . . . . . . . . Pick Up 182 | 6 7 46 4 1 1 17 28 3 24 7 1 10 5 5 5 . 12 . Fast Attach 48 | 5 2 14 . 2 . 3 1 1 3 6 . 2 3 1 3 . 2 . Attach 53 | 2 2 8 . 1 2 4 2 . 5 1 1 9 2 5 6 2 . 1 Detach 21 | . . 2 . . . 1 . 2 3 1 . 3 1 5 2 . 1 . Swap 132 | 1 7 15 6 3 2 15 26 2 10 9 . 15 3 1 14 1 . 2 Drop 144 | . 1 27 6 3 1 13 28 9 20 10 1 7 7 3 4 . 4 . Fire 733 | 8 64 98 11 . 12 50 57 3 130 57 . 47 41 21 65 39 21 9 Melee 120 | . . . . 6 . 3 5 . 30 29 1 9 10 . 2 1 24 . Ram . | . . . . . . . . . . . . . . . . . . . Kick 5 | . . 4 . . . . . . 1 . . . . . . . . . Crush 21 | . . 1 . . 1 3 3 3 2 1 . . 7 . . . . . Escape Stasis 23 | . . . . . . . . . . . . . . 11 12 . . . Rewire 233 | . . . . . . . 9 113 . . . 1 . 4 106 . . . Trap 18 | . . 15 . . . 3 . . . . . . . . . . . . Miscellaneous 9 | . . . . . . . 9 . . . . . . . . . . . Route ------- -11/Scrapyard -10/Materials (discovered 2 exits: *Mat / [*Min]) -9/Materials (discovered 3 exits: *Mat / *Min x2) -9/Mines (discovered 3 exits: *Mat x2 / *Exi) -9/Exiles -8/Mines (discovered 2 exits: *Mat x2) -8/Materials (discovered 5 exits: *Fac x3 / *Sto x2) -8/Storage (discovered 3 exits: *Fac / *Rec / Gar) -8/Recycling -6/Factory (discovered 7 exits: Fac x4 / *Low x2 / Gar) -6/Garrison -6/Factory (discovered 4 exits: Fac x2 / Low / Gar) -6/Garrison -5/Factory (discovered 2 exits: [*Upp] / Gar) -5/Garrison (discovered 2 exits: *Ext x2) -5/Extension (discovered 3 exits: *Fac x2 / *Cet) -5/Cetus -5/Archives (discovered 3 exits: *Fac / *Hub x2) -5/Hub_04(d) History --------- Turn | Location | Event 11 | -11/Scrapyard | Discovered new exit (range 15) 90 | -11/Scrapyard | Entered Materials 99 | -10/Materials | Discovered new exit (range 16) 176 | -10/Materials | Destroyed 7 combat bots 381 | -10/Materials | Core integrity fell below 50% 515 | -10/Materials | Discovered new exit (range 16) 525 | -10/Materials | Lost 3 parts (2p1u) 538 | -10/Materials | Core integrity fell below 20% 542 | -10/Materials | Entered another Materials area 542 | -9/Materials | Accompanied by 1 ally 542 | -9/Materials | Evolved 2 slots: Utility x1, Weapon x1 689 | -9/Materials | Lost 5 parts (1n4w) 720 | -9/Materials | Core integrity fell below 50% 755 | -9/Materials | Lost 4 parts (1p1n2w) 1509 | -9/Materials | Discovered new exit (range 8) 1622 | -9/Materials | Core integrity fell below 20% 1962 | -9/Materials | Build established: Gunner 2152 | -9/Materials | Discovered new exit (range 14) 2184 | -9/Materials | Discovered new exit (range 9) 2238 | -9/Materials | Identified exit to Mines 2350 | -9/Materials | Learned Storage security intel 2411 | -9/Materials | Learned Storage security intel 2460 | -9/Materials | Learned Storage stockpile data 2498 | -9/Materials | Loaded intel: 2 recycling unit locations 2545 | -9/Materials | Learned Storage trap positions 2601 | -9/Materials | Learned Storage interactive machine intel 2762 | -9/Materials | Entered Mines 2765 | -9/Mines | Received a Mining Laser from a helpful Derelict 2879 | -9/Mines | Discovered new exit (range 8) 2915 | -9/Mines | Found a Scrap Suit stashed away for nefarious purposes 2923 | -9/Mines | Found Scrap Suit 2965 | -9/Mines | Assisted by bots powering up and referring to "LRC-V3" 3019 | -9/Mines | Deemed a non-threat by the Exiles lab entrance 3244 | -9/Mines | A weapon hastily lodged in a ceiling crevice suddenly fell to the ground 3259 | -9/Mines | Discovered new exit (range 7) 3310 | -9/Mines | Found a hidden stash of uninstalled traps 3626 | -9/Mines | Learned location of Storage (-8) 3862 | -9/Mines | Discovered new exit (range 5) 3871 | -9/Mines | Entered Exiles 3871 | -9/Exiles | Accompanied by 3 allies 3883 | -9/Exiles | Build established: Scavenger-Gunner 3929 | -9/Exiles | Met 8R-AWN 3978 | -9/Exiles | Met EX-HEX 4077 | -9/Exiles | Met EX-BIN 4112 | -9/Exiles | Aligned with FarCom system 4114 | -9/Exiles | Given EX-Vault access code 4195 | -9/Exiles | Opened EX-Vault 4218 | -9/Exiles | Found Field Lobotomy Kit 4267 | -9/Exiles | Warned to stay clear of 0b10 Research branches 4349 | -9/Exiles | Learned location of Zion (-6) 4351 | -9/Exiles | Met EX-DEC 4576 | -9/Exiles | Visited The Gauntlet 4685 | -9/Exiles | Build established: Scavenger-Mutant 4691 | -9/Exiles | Discovered new exit (range 14) 4842 | -9/Exiles | Left Exiles lab with Field Lobotomy Kit 4842 | -9/Exiles | Entered Mines 4842 | -8/Mines | Accompanied by 3 allies 5032 | -8/Mines | Discovered new exit (range 3) 5129 | -8/Mines | Build established: Scavenger-Skirmisher 5294 | -8/Mines | Discovered new exit (range 8) 5894 | -8/Mines | Entered Materials 5894 | -8/Materials | Accompanied by 1 ally 5894 | -8/Materials | Evolved 2 slots: Propulsion x1, Utility x1 5961 | -8/Materials | Discovered new exit (range 16) 5972 | -8/Materials | Garrison activated, responded to threat 6709 | -8/Materials | Discovered new exit (range 9) 7237 | -8/Materials | Identified exit to Storage 7281 | -8/Materials | Learned Factory stockpile data 7316 | -8/Materials | Learned location of 3 exits from Factory 7341 | -8/Materials | Learned location of 1 exit from Extension 7355 | -8/Materials | Identified exit to Factory 7358 | -8/Materials | Learned location of 2 exits from Lower Caves 7362 | -8/Materials | Learned location of 2 exits from Factory 7375 | -8/Materials | Learned 4 Factory zone layouts 7508 | -8/Materials | Entered Storage 7510 | -8/Storage | Loaded intel: 15 trap records 7513 | -8/Storage | Loaded intel: 15 interactive machine locations 7858 | -8/Storage | Build established: Tank 8019 | -8/Storage | Garrison activated, responded to threat 8288 | -8/Storage | Assisted by bots powering up and referring to "LRC-V3" 8581 | -8/Storage | Build established: Commander-Tank 9445 | -8/Storage | Build established: Commander-Skirmisher 9539 | -8/Storage | Identified exit to Garrison 9820 | -8/Storage | Build established: Commander-Tank 9958 | -8/Storage | Identified exit to Recycling 10033 | -8/Storage | Learned location of 1 exit from Lower Caves 10042 | -8/Storage | Repaired Imp. EM Shotgun 10250 | -8/Storage | Learned Factory emergency access door positions 10286 | -8/Storage | Learned location of Lower Caves (-7) 10507 | -8/Storage | Entered Recycling 10507 | -8/Recycling | Accompanied by 9 allies 10508 | -8/Recycling | Identified exit to Factory 10901 | -8/Recycling | Scanned before Scraplab entrance 10918 | -8/Recycling | Build established: Commander-Skirmisher 12024 | -8/Recycling | Discovered new exit (range 11) 12030 | -8/Recycling | Entered Scraplab 12053 | -8/Recycling | Angered Scraplab inhabitants 12056 | -8/Recycling | Found Prototype Device 12056 | -8/Recycling | Identified Scrap Engine 12101 | -8/Recycling | Lost 5 allies 12346 | -8/Recycling | Build established: Commander-Mutant 12496 | -8/Recycling | Entered Factory 12496 | -6/Factory | Accompanied by 11 allies 12496 | -6/Factory | Evolved 4 slots: Power x1, Propulsion x1, Utility x2 12497 | -6/Factory | Identified exit to Factory 12498 | -6/Factory | Identified exit to Lower Caves 12590 | -6/Factory | Identified exit to Garrison 12854 | -6/Factory | Lost 6 allies 12952 | -6/Factory | Lost 3 allies 13225 | -6/Factory | Build established: Construct 13398 | -6/Factory | Cargo convoy interrupted 13488 | -6/Factory | Assimilated H-61 Shepherd with FLK Orb 15190 | -6/Factory | Fabricated Adv. Treads (x2) 15197 | -6/Factory | Found Hvy. Reactive Plating 16025 | -6/Factory | Entered Garrison 16026 | -6/Garrison | Identified exit to Factory 16453 | -6/Garrison | Lost 4 parts (1p1n1u1w) 16503 | -6/Garrison | Spotted B-75 Beast 16521 | -6/Garrison | Triggered checkpoint 16528 | -6/Garrison | Assimilated B-75 Beast with FLK Orb 16580 | -6/Garrison | Core integrity fell below 50% 16735 | -6/Garrison | Triggered checkpoint 16834 | -6/Garrison | Installed Relay Interface Framework 17265 | -6/Garrison | Triggered checkpoint 17320 | -6/Garrison | Garrison Relay disabled 17570 | -6/Garrison | Entered Factory 17608 | -6/Factory | Build established: Bothacker-Construct 17628 | -6/Factory | Identified exit to Garrison 17890 | -6/Factory | Entered Garrison 18235 | -6/Garrison | Spotted B-75 Beast 18314 | -6/Garrison | Assimilated B-75 Beast with FLK Orb 18348 | -6/Garrison | Triggered checkpoint 18364 | -6/Garrison | Core integrity fell below 20% 18640 | -6/Garrison | Discovered exit to Factory (range 14) 18714 | -6/Garrison | Triggered checkpoint 18782 | -6/Garrison | Expanded RIF knowledge: Hotswap 18827 | -6/Garrison | Garrison Relay disabled 18940 | -6/Garrison | Entered Factory 18940 | -5/Factory | Evolved 2 slots: Propulsion x1, Weapon x1 19929 | -5/Factory | Assimilated P-70 Sage with FLK Orb 20284 | -5/Factory | Discovered new exit (range 10) 20604 | -5/Factory | Identified exit to Garrison 20604 | -5/Factory | Entered Garrison 20752 | -5/Garrison | Triggered checkpoint 20898 | -5/Garrison | Discovered new exit (range 12) 20984 | -5/Garrison | System corruption reached 10% 21008 | -5/Garrison | Assimilated Y-64 Sentinel with FLK Orb 21037 | -5/Garrison | Lost 3 parts (3w) 21142 | -5/Garrison | Triggered checkpoint 21182 | -5/Garrison | Triggered checkpoint 21241 | -5/Garrison | Phase Generator disabled 21290 | -5/Garrison | Discovered new exit (range 16) 21316 | -5/Garrison | Triggered checkpoint 21334 | -5/Garrison | Expanded RIF knowledge: Program Shield 21347 | -5/Garrison | Garrison Relay disabled 21384 | -5/Garrison | Entered Extension 21384 | -5/Extension | Accompanied by 2 allies 21385 | -5/Extension | Identified exit to Factory 21691 | -5/Extension | Rescued a captive Derelict 21692 | -5/Extension | Rescued a captive Derelict 21735 | -5/Extension | Rescued a captive Derelict 21736 | -5/Extension | Rescued a captive Derelict 21780 | -5/Extension | Energy Cycler disabled 21780 | -5/Extension | Rescued a captive Derelict 21780 | -5/Extension | Rescued a captive Derelict 21781 | -5/Extension | Rescued a captive Derelict 21781 | -5/Extension | Rescued a captive Derelict 21782 | -5/Extension | Rescued a captive Derelict 21782 | -5/Extension | Rescued a captive Derelict 21783 | -5/Extension | Rescued a captive Derelict 21793 | -5/Extension | Rescued a captive Derelict 21842 | -5/Extension | Rescued A7 21950 | -5/Extension | Lost 3 allies 22424 | -5/Extension | Spotted B-75 Beast 22443 | -5/Extension | Destroyed B-75 Beast 22454 | -5/Extension | Spotted B-75 Beast 22458 | -5/Extension | Discovered exit to Factory (range 15) 22470 | -5/Extension | Allies destroyed A7 22493 | -5/Extension | Core integrity fell below 50% 22506 | -5/Extension | Lost 6 allies 22523 | -5/Extension | Destroyed B-75 Beast 22549 | -5/Extension | Lost 3 parts (1n1u1w) 22584 | -5/Extension | First assault squad dispatched 22671 | -5/Extension | Extracted ID and sensor layout for unrecognized location from A7's data core 23335 | -5/Extension | Discovered new exit (range 8) 23387 | -5/Extension | Entered Cetus 23387 | -5/Cetus | Accompanied by 6 allies 23390 | -5/Cetus | Build established: Commander-Construct 23411 | -5/Cetus | Spotted Cetus Guard 23411 | -5/Cetus | Spotted Cetus Guard 23416 | -5/Cetus | Spotted Cetus Guard 23425 | -5/Cetus | Spotted Cetus Guard 23425 | -5/Cetus | Allies destroyed Cetus Guard 23439 | -5/Cetus | Destroyed Cetus Guard 23462 | -5/Cetus | Destroyed Cetus Guard 23473 | -5/Cetus | Lost 6 allies 23486 | -5/Cetus | Lost 4 parts (1p1u2w) 23487 | -5/Cetus | Destroyed Cetus Guard 23679 | -5/Cetus | Discovered new exit (range 16) 23724 | -5/Cetus | Build established: Construct 23746 | -5/Cetus | Entered Archives 23891 | -5/Archives | Core integrity fell below 20% 23987 | -5/Archives | Unable to access archive contents 23990 | -5/Archives | Discovered new exit (range 16) 24042 | -5/Archives | Discovered exit to Factory (range 15) 24074 | -5/Archives | Discovered new exit (range 16) 24215 | -5/Archives | Unable to access archive contents 24649 | -5/Archives | Entered Hub_04(d) 24730 | -5/Hub_04(d) | Core destroyed Last Messages --------------- 24679_ Connecting with Terminal... 24679_ Current location identified: Hub_04(d) 24680_ ALERT: Hostiles spotted, dispatching reinforcements to Terminal H008. 24686_ Jacked O-24 Administrator... >>locate_traps Extracting local trap data... Pinpointed 3 traps in 1 array: 3x EM Surge Trap 24693_ Arm. Scrap Engine consumes Mic. Fission Core. 24716_ Penetrated by Slug. 24716_ Y-64 Sentinel destroyed. 24720_ Destroyed Lgt. Angular Momentum Engine. 24724_ Discarded Imp. System Restoration Module. 24725_ Adv. Cooling System destroyed. 24726_ G-50 Soldier destroyed. 24729_ Power failure, Particle-Momentum Reactor shutdown. 24730_ Overheating: Core damaged (-140). Map ----- +----------------------------------------------------+ | | | | | | | | | | | | | | | | | ???????????????????????????????????????????? | | ???????????????????????????????????????????? | | ???????????????????????????####????????????? | | ???????????????????????????#""#????????????? | | ??????????????????????######T"########?????? | | ????????#####?????????# #???? | | ????????# ########### ######## #####?????? | | ????????# # # #?######+####??????? | | ????????# # # #?# #??????? | | ????????# # """" # #?# #??????? | | ????????# # """" # ###! """" ""#??????? | | ????????# + """" # # """" ""#??????? | | ????????# # """" + + """" T"#??????? | | ????????# # # # """" ""#??????? | | ????????# # # # ""#??????? | | ????????# ########### # = #??????? | | ????????# #?????????# ###########??????? | | ????????# #?????????# @#????????????????? | | ????????# #?????????# #????????????????? | | ????????# #?????????# #????????????????? | | ????????# ??????????#=!!#????????????????? | | ????????+^^^??????????#%[%%????????????????? | | ????????# ??????????#[**+ ???????????????? | | ????????# ??????????# # ??????????????? | | ????????# ??????????# # ?????????????? | | ????????? ??????????# #? ???????????? | | ??????????????????????# #??# ##??????????? | | ??????????????????????; #???##???????????? | | ??????????????????????# #????????????????? | | ??????????????????????# #????????????????? | | ??????????????????????# #????????????????? | | ?????????????????????? ????????????????? | | ?????????????????????? ????????????????? | | ?????????????????????? " ????????????????? | | ?????????????????????? ????????????????? | | ?????????????????????? ? ????????????????? | | ???????????????????????????????????????????? | | ???????????????????????????????????????????? | | ???????????????????????????????????????????? | | ???????????????????????????????????????????? | | ???????????????????????????????????????????? | | ???????????????????????????????????????????? | +----------------------------------------------------+ Best States ------------- Heat Dissipation 71 Energy Generation 38 Energy Capacity 620 Matter Stores 300 Matter Capacity 300 Sight Range 18 Terrain Scan Range 16 Terrain Scan Density 10 Additional Mass Support 12 Base Temperature (-) 150 Armor Coverage 450 Resistance: KI 20 Melee Speed Boost 20 Evasion (%) 60 Targeting Accuracy 8 Recoil Reduction 4 Offensive Hacking 20 Relay Coupler Types 2 Relay Coupler Value 57 Authchip Count 5 Item Schematics ----------------- Adv. Treads | -8/Storage | Hacked Adv. Targeting Computer | -6/Factory | Scanalyzed Cld. Pulse Rifle | -6/Factory | Scanalyzed Graphene Brace | -5/Factory | Scanalyzed Robot Schematics ------------------ M-28 Smith | -8/Materials | Hacked M-14 Sweeper | -8/Recycling | Hacked Fabricated ------------ Adv. Treads | x2 | -6/Factory | Authchip Repaired ---------- Imp. EM Shotgun | 38% | -8/Storage Studied --------- Lgt. Treads | -9/Materials | Hacked Imp. Aluminum Leg | -9/Materials | Hacked Hvy. Assault Rifle | -9/Materials | Hacked Com. Wheel | -9/Materials | Hacked Alien Tech Used ----------------- None Achievements -------------- Batter Up Generalissimo Hammer Time I Laugh At Your Crits Jackpot Prison Break Satisfying Challenges ------------ None Game ------ Seed DataReactiveScythe Manual? 0 Play Time 06:00:10 Cumulative 114.3 hours Start 2026.03.01 @ 20:03:57 End 2026.03.27 @ 17:02:58 Sessions 28 Manual Loads 0 Difficulty Rogue Special Mode None Game No. 41 Rogue 40 Adventurer 1 Explorer 0 Win Type - Total 2 Types 1/0/1/0/0/0/0/0/0/0 Lore% 45 Gallery% 46 Achievement% 41 Wizard Run 0 Options --------- Layout 2 ASCII 0 Keyboard 1 Movement Vi Keybinds 1 Fullscreen 2 Font 32/Terminus Map View 50x44 Zoom Use 0% Tactical HUD 1 Map Filters NONE Filters NONE Steam 0 RUN: e324c4e6-47cd-47a8-8163-4d3f959f5381